fUST/lending_fUST_20250109
["ID","MTS","AMOUNT","RATE_DAILY","PERIOD"]
[348162999,1736361037794,-500.0,0.00019178,2]
[348163000,1736361037803,-500.0,0.00019178,2]
[348163001,1736361037813,-500.0,0.00019178,2]
[348163002,1736361037824,-541.66,0.00019178,2]
[348163003,1736361037833,-500.0,0.00019178,2]
[348163004,1736361037845,-500.0,0.00019178,2]
[348163005,1736361037857,-445.29815561,0.00019178,2]
[348163006,1736361037866,-500.0,0.00019178,2]
[348163007,1736361037875,-523.04,0.00019178,2]
[348163008,1736361037885,-500.0,0.00019178,2]
[348163009,1736361037894,-500.0,0.00019178,2]
[348163010,1736361037904,-500.0,0.00019178,2]
[348163011,1736361037913,-1252.89,0.00019178,2]
[348163012,1736361037923,-1252.89,0.00019178,2]
[348163013,1736361037934,-1252.89,0.00019178,2]
[348163014,1736361037944,-1252.89,0.00019178,2]
[348163015,1736361037954,-1252.89,0.00019178,2]
[348163016,1736361037965,-1252.89,0.00019178,2]
[348163017,1736361037974,-156.43,0.00019178,2]
[348163018,1736361037983,-500.0,0.00019451,3]
[348163019,1736361037993,-500.0,0.00019451,3]
[348163020,1736361038003,-500.0,0.00019451,3]
[348163021,1736361038012,-1252.89,0.00019451,3]
[348163022,1736361038022,-500.0,0.00019452,3]
[348163023,1736361038031,-500.0,0.00019452,3]
[348163024,1736361038041,-618.49,0.00019452,3]
[348163025,1736361038050,-500.0,0.00019452,3]
[348163026,1736361038059,-2083.5,0.00019452,3]
[348163027,1736361038068,-500.0,0.00019452,3]
[348163028,1736361038078,-500.0,0.00019452,3]
[348163029,1736361038088,-502.49615994,0.00019452,3]
[348163030,1736361038099,-554.96,0.00019452,3]
[348163031,1736361038109,-500.0,0.00019452,3]
[348163032,1736361038120,-500.0,0.00019452,3]
[348163033,1736361038130,-500.0,0.00019452,3]
[348163034,1736361038140,-182.54381154,0.00019452,3]
[348163035,1736361038150,-3755.11,0.00019452,3]
[348163036,1736361038160,-500.0,0.00019452,3]
[348163037,1736361038170,-500.0,0.00019452,3]
[348163038,1736361038180,-500.0,0.00019452,3]
[348163039,1736361038190,-500.0,0.00019452,3]
[348163040,1736361038199,-295.42,0.00019452,3]
[348163041,1736361038209,-500.0,0.00019452,3]
[348163042,1736361038220,-500.0,0.00019452,3]
[348163043,1736361038229,-500.0,0.00019452,3]
[348163045,1736361038238,-500.0,0.00019452,3]
[348163046,1736361038248,-566.14,0.00019452,3]
[348163047,1736361038258,-523.04,0.00019452,3]
[348163048,1736361038268,-500.0,0.00019452,3]
[348163049,1736361038277,-3667.54163531,0.0001955,2]
[348163092,1736361038857,-4278.08699789,0.0001955,2]
[348163094,1736361038867,-500.0,0.00019725,3]
[348163096,1736361038877,-549.46415469,0.00019725,3]
[348163098,1736361038887,-1252.89,0.00019725,3]
[348163100,1736361038897,-500.0,0.00019726,3]
[348163102,1736361038906,-500.0,0.00019726,3]
[348163104,1736361038916,-500.0,0.00019726,3]
[348163106,1736361038926,-879.94069882,0.00019726,3]
[348163108,1736361038939,-1203.55930118,0.00019726,3]
[348163110,1736361038949,-459.36,0.00019726,3]
[348163112,1736361038959,-554.96,0.00019726,3]
[348163114,1736361038968,-500.0,0.00019726,3]
[348163116,1736361038978,-475.26,0.00019726,3]
[348163118,1736361038987,-3755.11,0.00019726,3]
[348163120,1736361038998,-500.0,0.00019726,3]
[348163122,1736361039008,-602.34,0.00019726,3]
[348163124,1736361039017,-500.0,0.00019726,3]
[348163126,1736361039027,-299.42,0.00019726,3]
[348163128,1736361039036,-500.0,0.00019726,3]
[348163130,1736361039046,-500.0,0.00019726,3]
[348163132,1736361039055,-523.04,0.00019726,3]
[348163134,1736361039064,-500.0,0.00019726,3]
[348163137,1736361039074,-200.02349105,0.000199,2]
[348163140,1736361039084,-500.0,0.00019999,3]
[348163143,1736361039094,-1252.89,0.00019999,3]
[348163145,1736361039107,-261.28787512,0.00019999,2]
[348163148,1736361039117,-500.0,0.00019999,2]
[348163153,1736361039127,-543.70402416,0.00019999,2]
[348163156,1736361039136,-500.0,0.00019999,2]
[348163159,1736361039145,-466.72511729,0.00019999,2]
[348163161,1736361039155,-500.0,0.00019999,2]
[348163164,1736361039164,-155.785418,0.00019999,2]
[348163166,1736361039176,-386.59251533,0.00019999,2]
[348163168,1736361039185,-2383.0,0.0002,2]
[348163170,1736361039195,-500.0,0.0002,3]
[348163172,1736361039204,-500.0,0.0002,3]
[348163174,1736361039214,-5813.875,0.0002,2]
[348163176,1736361039223,-414.04,0.0002,3]
[348163178,1736361039232,-2083.5,0.0002,3]
[348163180,1736361039241,-554.96,0.0002,3]
[348163182,1736361039251,-500.0,0.0002,3]
[348163184,1736361039260,-2275.36691589,0.0002,3]
[348163191,1736361039317,-1479.74308411,0.0002,3]
[348163193,1736361039326,-234.94,0.0002,3]
[348163195,1736361039335,-500.0,0.0002,3]
[348163197,1736361039345,-500.0,0.0002,3]
[348163198,1736361039358,-62.82780614,0.0002,3]
[348163201,1736361039370,-122.40219386,0.0002,3]
[348163203,1736361039379,-523.04,0.0002,3]
[348163205,1736361039388,-500.0,0.0002,3]
[348163207,1736361039397,-200.023491,0.00020111,2]
[348163209,1736361039407,-1252.89,0.00020272,3]
[348163211,1736361039416,-500.0,0.00020273,3]
[348163213,1736361039425,-500.0,0.00020273,3]
[348163215,1736361039434,-128.84578285,0.00020273,3]
[348163217,1736361039446,-371.645,0.00020273,3]
[348163340,1736361040793,-500.0,0.00019178,2]
[348163343,1736361040803,-1583.00921715,0.00020273,3]
[348163345,1736361040813,-554.96,0.00020273,3]
[348163347,1736361040823,-500.0,0.00020273,3]
[348163349,1736361040832,-3755.11,0.00020273,3]
[348163351,1736361040842,-500.0,0.00020273,3]
[348163353,1736361040854,-500.0,0.00020273,3]
[348163355,1736361040863,-523.04,0.00020273,3]
[348163357,1736361040872,-500.0,0.00020273,3]
[348163359,1736361040882,-200.023491,0.00020321,2]
[348163361,1736361040891,-200.023491,0.00020532,2]
[348163363,1736361040900,-500.0,0.00020546,3]
[348163365,1736361040909,-12839.96469931,0.00020547,5]
[348163367,1736361040918,-277.61887474,0.00020547,5]
[348163378,1736361041017,-735.6557131,0.00020547,5]
[348163380,1736361041027,-500.0,0.00020547,3]
[348163382,1736361041037,-500.0,0.00020547,3]
[348163384,1736361041046,-2083.5,0.00020547,3]
[348163386,1736361041055,-554.96,0.00020547,3]
[348163388,1736361041065,-500.0,0.00020547,3]
[348163390,1736361041074,-3755.11,0.00020547,3]
[348163392,1736361041084,-458.43700294,0.00020547,3]
[348163394,1736361041093,-422.38180384,0.00020547,3]
[348163396,1736361041104,-523.04,0.00020547,3]
[348163398,1736361041114,-500.0,0.00020547,3]
[348163400,1736361041124,-200.023491,0.00020742,2]
[348163402,1736361041133,-500.0,0.00020821,3]
[348163404,1736361041143,-500.0,0.00020821,3]
[348163406,1736361041153,-2083.5,0.00020821,3]
[348163408,1736361041162,-554.96,0.00020821,3]
[348163410,1736361041171,-288.13056141,0.00020821,3]
[348163741,1736361044247,-500.0,0.00019178,2]
[348163742,1736361044257,-500.0,0.00019178,2]
[348163743,1736361044267,-211.86943859,0.00020821,3]
[348163744,1736361044276,-3755.11,0.00020821,3]
[348163745,1736361044285,-523.04,0.00020821,3]
[348163746,1736361044294,-483.16219909,0.00020821,3]
[348163747,1736361044303,-420.0,0.00020899,2]
[348163748,1736361044312,-200.023491,0.00020953,2]
[348163749,1736361044322,-150.0,0.00021,2]
[348163750,1736361044331,-500.0,0.00021094,3]
[348163751,1736361044341,-1252.89,0.00021094,3]
[348163752,1736361044351,-2083.5,0.00021095,3]
[348163754,1736361044362,-554.96,0.00021095,3]
[348163756,1736361044371,-500.0,0.00021095,3]
[348163758,1736361044380,-3755.11,0.00021095,3]
[348163760,1736361044390,-523.04,0.00021095,3]
[348163762,1736361044399,-200.023491,0.00021163,2]
[348163764,1736361044408,-2083.5,0.00021369,3]
[348163766,1736361044417,-554.96,0.00021369,3]
[348163768,1736361044427,-500.0,0.00021369,3]
[348163770,1736361044436,-332.42078855,0.00021369,3]
[348163773,1736361044452,-3422.68921145,0.00021369,3]
[348163775,1736361044462,-523.04,0.00021369,3]
[348163777,1736361044471,-200.023491,0.00021374,2]
[348163788,1736361044565,-200.023491,0.00021584,2]
[348163790,1736361044579,-2383.0,0.000216,4]
[348163792,1736361044589,-500.0,0.00021641,3]
[348163794,1736361044598,-875.78299655,0.00021642,3]
[348164034,1736361046818,-500.0,0.00019178,2]
[348164036,1736361046827,-500.0,0.00019452,3]
[348164043,1736361046888,-500.0,0.00019452,3]
[348164045,1736361046898,-500.0,0.00019726,3]
[348164047,1736361046907,-500.0,0.00019726,3]
[348164049,1736361046917,-500.0,0.0002,3]
[348164051,1736361046926,-214.3824,0.00020273,3]
[348165776,1736361149046,160.075145,0.00013973,2]
[348166331,1736362017900,160.021347,0.00013973,2]
[348166336,1736362039168,-196.48382623,0.000179,2]
[348166337,1736362039196,-173.6849017,0.00018,2]
[348166338,1736362039223,-191.16361885,0.000189,2]
[348166339,1736362039932,-482.60131933,0.000189,2]
[348166340,1736362039958,-2.77763382,0.00019176,2]
[348166496,1736362149174,-636.9118,0.00018178,2]
[348166858,1736362238117,-14.2535623,0.00018178,2]
[348166860,1736362238128,-449.17662545,0.000189,2]
[348166862,1736362238138,-182.53039337,0.00019077,2]
[348166864,1736362238148,-509.44834439,0.00019173,2]
[348166866,1736362238158,-156.44,0.00019177,2]
[348166868,1736362238167,-180.007,0.00019177,2]
[348166870,1736362238176,-534.98999894,0.00019177,2]
[348166872,1736362238186,-319.77910266,0.00019177,2]
[348166874,1736362238195,-500.0,0.00019177,2]
[348166876,1736362238204,-500.0,0.00019177,2]
[348166878,1736362238214,-466.97363086,0.00019177,2]
[348166880,1736362238223,-500.0,0.00019177,2]
[348166882,1736362238232,-47.80687461,0.00019177,2]
[348166885,1736362238244,-452.19312539,0.00019177,2]
[348166887,1736362238254,-500.0,0.00019177,2]
[348166889,1736362238262,-55.50687461,0.00019177,2]
[348166891,1736362238275,-444.49312539,0.00019177,2]
[348166893,1736362238285,-500.0,0.00019177,2]
[348166895,1736362238294,-500.0,0.00019177,2]
[348166897,1736362238303,-500.0,0.00019177,2]
[348166899,1736362238312,-500.0,0.00019177,2]
[348166901,1736362238322,-500.0,0.00019177,2]
[348166904,1736362238331,-500.0,0.00019177,2]
[348166907,1736362238344,-500.0,0.00019177,2]
[348166910,1736362238353,-500.0,0.00019177,2]
[348166913,1736362238363,-15.08304913,0.00019177,2]
[348166916,1736362238375,-484.91695087,0.00019177,2]
[348166918,1736362238385,-500.0,0.00019177,2]
[348166920,1736362238394,-500.0,0.00019177,2]
[348166922,1736362238403,-500.0,0.00019177,2]
[348166924,1736362238412,-500.0,0.00019177,2]
[348166926,1736362238422,-500.0,0.00019177,2]
[348166928,1736362238432,-500.0,0.00019177,2]
[348166930,1736362238441,-500.0,0.00019177,2]
[348166932,1736362238451,-500.0,0.00019177,2]
[348166934,1736362238461,-500.0,0.00019177,2]
[348166936,1736362238471,-500.0,0.00019177,2]
[348166938,1736362238481,-500.0,0.00019177,2]
[348166940,1736362238491,-505.0,0.00019177,2]
[348166942,1736362238501,-500.0,0.00019177,2]
[348166944,1736362238511,-500.0,0.00019177,2]
[348166947,1736362238522,-500.0,0.00019177,2]
[348166949,1736362238532,-500.0,0.00019177,2]
[348166951,1736362238542,-500.0,0.00019177,2]
[348166953,1736362238551,-500.0,0.00019177,2]
[348166955,1736362238560,-500.0,0.00019177,2]
[348166957,1736362238570,-500.0,0.00019177,2]
[348166959,1736362238580,-322.10307085,0.00019177,2]
[348166961,1736362238590,-500.0,0.00019177,2]
[348166962,1736362238600,-500.0,0.00019177,2]
[348166964,1736362238609,-500.0,0.00019177,2]
[348166966,1736362238619,-500.0,0.00019177,2]
[348166969,1736362238630,-500.0,0.00019177,2]
[348166970,1736362238639,-437.45,0.00019177,2]
[348166973,1736362238648,-500.0,0.00019177,2]
[348166975,1736362238658,-500.0,0.00019177,2]
[348166976,1736362238667,-500.0,0.00019177,2]
[348166978,1736362238677,-500.0,0.00019177,2]
[348166980,1736362238686,-500.0,0.00019177,2]
[348166983,1736362238696,-500.0,0.00019177,2]
[348166985,1736362238705,-500.0,0.00019177,2]
[348166987,1736362238714,-500.0,0.00019177,2]
[348166988,1736362238724,-500.0,0.00019177,2]
[348166991,1736362238733,-500.0,0.00019177,2]
[348166993,1736362238743,-500.0,0.00019177,2]
[348166995,1736362238752,-500.0,0.00019177,2]
[348166997,1736362238761,-500.0,0.00019177,2]
[348166999,1736362238772,-500.0,0.00019177,2]
[348167001,1736362238781,-500.0,0.00019177,2]
[348167003,1736362238791,-500.0,0.00019177,2]
[348167004,1736362238800,-500.0,0.00019177,2]
[348167007,1736362238809,-397.27268287,0.00019177,2]
[348167009,1736362238819,-500.0,0.00019177,2]
[348167010,1736362238829,-500.0,0.00019177,2]
[348167013,1736362238839,-500.0,0.00019177,2]
[348167014,1736362238848,-500.0,0.00019177,2]
[348167016,1736362238857,-500.0,0.00019177,2]
[348167018,1736362238867,-500.0,0.00019177,2]
[348167020,1736362238876,-500.0,0.00019177,2]
[348167022,1736362238886,-500.0,0.00019177,2]
[348167024,1736362238896,-500.0,0.00019177,2]
[348167027,1736362238905,-500.0,0.00019177,2]
[348167029,1736362238919,-500.0,0.00019177,2]
[348167031,1736362238928,-500.0,0.00019177,2]
[348167032,1736362238938,-500.0,0.00019177,2]
[348167034,1736362238947,-500.0,0.00019177,2]
[348167036,1736362238958,-500.0,0.00019177,2]
[348167038,1736362238968,-500.0,0.00019177,2]
[348167040,1736362238977,-615.55026966,0.00019178,2]
[348167043,1736362238988,-500.0,0.00019178,2]
[348167044,1736362238997,-500.0,0.00019178,2]
[348167046,1736362239006,-500.0,0.00019178,2]
[348167049,1736362239016,-500.0,0.00019178,2]
[348167051,1736362239028,-500.0,0.00019178,2]
[348167052,1736362239038,-500.0,0.00019178,2]
[348167055,1736362239048,-500.0,0.00019178,2]
[348167056,1736362239057,-500.0,0.00019178,2]
[348167058,1736362239067,-500.0,0.00019178,2]
[348167060,1736362239076,-500.0,0.00019178,2]
[348167062,1736362239086,-499.0,0.00019178,2]
[348167064,1736362239096,-500.0,0.00019178,2]
[348167066,1736362239105,-500.0,0.00019178,2]
[348167068,1736362239115,-500.0,0.00019178,2]
[348167070,1736362239124,-500.0,0.00019178,2]
[348167072,1736362239133,-500.0,0.00019178,2]
[348167074,1736362239143,-500.0,0.00019178,2]
[348167076,1736362239153,-500.0,0.00019178,2]
[348167078,1736362239162,-500.0,0.00019178,2]
[348167080,1736362239171,-500.0,0.00019178,2]
[348167082,1736362239180,-500.0,0.00019178,2]
[348167084,1736362239190,-500.0,0.00019178,2]
[348167086,1736362239199,-500.0,0.00019178,2]
[348167088,1736362239209,-500.0,0.00019178,2]
[348167090,1736362239219,-500.0,0.00019178,2]
[348167092,1736362239229,-500.0,0.00019178,2]
[348167094,1736362239239,-500.0,0.00019178,2]
[348167096,1736362239248,-500.0,0.00019178,2]
[348167098,1736362239258,-500.0,0.00019178,2]
[348167100,1736362239268,-1424.11,0.00019178,2]
[348167103,1736362239282,-500.0,0.00019178,2]
[348167116,1736362239405,-500.0,0.00019178,2]
[348167118,1736362239416,-500.0,0.00019178,2]
[348167120,1736362239426,-500.0,0.00019178,2]
[348167122,1736362239436,-500.0,0.00019178,2]
[348167124,1736362239445,-500.0,0.00019178,2]
[348167126,1736362239454,-500.0,0.00019178,2]
[348167128,1736362239464,-500.0,0.00019178,2]
[348167130,1736362239474,-500.0,0.00019178,2]
[348167132,1736362239484,-500.0,0.00019178,2]
[348167134,1736362239494,-500.0,0.00019178,2]
[348167136,1736362239504,-500.0,0.00019178,2]
[348167138,1736362239514,-500.0,0.00019178,2]
[348167140,1736362239525,-500.0,0.00019178,2]
[348167142,1736362239535,-500.0,0.00019178,2]
[348167144,1736362239544,-500.0,0.00019178,2]
[348167146,1736362239554,-500.0,0.00019178,2]
[348167148,1736362239563,-502.13937439,0.00019178,2]
[348167151,1736362239573,-500.0,0.00019178,2]
[348167153,1736362239583,-500.0,0.00019178,5]
[348167155,1736362239593,-507.73070451,0.00019178,2]
[348167157,1736362239602,-500.0,0.00019178,2]
[348167160,1736362239612,-500.0,0.00019178,2]
[348167163,1736362239621,-500.0,0.00019178,2]
[348167165,1736362239631,-500.0,0.00019178,2]
[348167167,1736362239640,-500.0,0.00019178,2]
[348167169,1736362239649,-296.38022786,0.00019178,2]
[348167171,1736362239658,-500.0,0.00019178,2]
[348167173,1736362239669,-500.0,0.00019178,2]
[348167175,1736362239678,-500.0,0.00019178,2]
[348167177,1736362239688,-500.0,0.00019178,2]
[348167179,1736362239697,-340.97688324,0.00019178,2]
[348167181,1736362239707,-450.01826091,0.00019178,2]
[348167183,1736362239717,-500.0,0.00019178,2]
[348167186,1736362239729,-500.0,0.00019178,2]
[348167187,1736362239738,-500.0,0.00019178,2]
[348167189,1736362239748,-500.0,0.00019178,2]
[348167191,1736362239758,-500.0,0.00019178,2]
[348167193,1736362239769,-500.0,0.00019178,2]
[348167195,1736362239779,-500.0,0.00019178,2]
[348167197,1736362239789,-500.0,0.00019178,2]
[348167199,1736362239799,-500.0,0.00019178,2]
[348167202,1736362239809,-500.0,0.00019178,2]
[348167203,1736362239818,-415.770773,0.00019178,2]
[348167206,1736362239838,-84.229227,0.00019178,2]
[348167209,1736362239848,-559.66,0.00019178,2]
[348167211,1736362239858,-500.0,0.00019178,2]
[348167213,1736362239867,-500.0,0.00019178,2]
[348167215,1736362239876,-500.0,0.00019178,2]
[348167217,1736362239886,-500.0,0.00019178,2]
[348167219,1736362239895,-500.0,0.00019178,2]
[348167221,1736362239905,-500.0,0.00019178,2]
[348167223,1736362239915,-500.0,0.00019178,2]
[348167225,1736362239927,-500.0,0.00019178,2]
[348167227,1736362239936,-1323.02,0.00019178,2]
[348167229,1736362239946,-500.0,0.00019178,2]
[348167231,1736362239956,-500.0,0.00019178,2]
[348167233,1736362239967,-500.0,0.00019178,2]
[348167235,1736362239977,-500.0,0.00019178,2]
[348167237,1736362239987,-500.0,0.00019178,2]
[348167239,1736362239997,-500.0,0.00019178,2]
[348167241,1736362240007,-500.0,0.00019178,2]
[348167243,1736362240016,-500.0,0.00019178,2]
[348167245,1736362240027,-500.0,0.00019178,2]
[348167247,1736362240037,-500.0,0.00019178,2]
[348167250,1736362240047,-500.0,0.00019178,2]
[348167251,1736362240057,-500.0,0.00019178,2]
[348167253,1736362240066,-500.0,0.00019178,2]
[348167256,1736362240075,-500.0,0.00019178,2]
[348167258,1736362240085,-500.0,0.00019178,2]
[348167260,1736362240095,-500.0,0.00019178,2]
[348167262,1736362240104,-500.0,0.00019178,2]
[348167264,1736362240114,-500.0,0.00019178,2]
[348167266,1736362240123,-500.0,0.00019178,2]
[348167268,1736362240132,-500.0,0.00019178,2]
[348167270,1736362240142,-500.0,0.00019178,2]
[348167272,1736362240151,-500.0,0.00019178,2]
[348167274,1736362240161,-607.11,0.00019178,2]
[348167276,1736362240170,-500.0,0.00019178,2]
[348167278,1736362240179,-500.0,0.00019178,2]
[348167280,1736362240188,-628.71,0.00019178,2]
[348167282,1736362240198,-500.0,0.00019178,2]
[348167284,1736362240207,-500.0,0.00019178,2]
[348167286,1736362240216,-500.0,0.00019178,2]
[348167288,1736362240225,-500.0,0.00019178,2]
[348167290,1736362240235,-500.0,0.00019178,2]
[348167292,1736362240244,-500.0,0.00019178,2]
[348167294,1736362240255,-507.45701322,0.00019178,2]
[348167296,1736362240264,-500.0,0.00019178,2]
[348167298,1736362240274,-500.0,0.00019178,2]
[348167300,1736362240284,-642.07,0.00019178,2]
[348167302,1736362240294,-264.14871387,0.00019178,2]
[348167304,1736362240303,-500.0,0.00019178,2]
[348167306,1736362240313,-500.0,0.00019178,2]
[348167308,1736362240323,-500.0,0.00019178,2]
[348167310,1736362240332,-500.0,0.00019178,2]
[348167312,1736362240342,-500.0,0.00019178,2]
[348167314,1736362240351,-500.0,0.00019178,2]
[348167316,1736362240360,-500.0,0.00019178,2]
[348167318,1736362240370,-579.8,0.00019178,2]
[348167320,1736362240380,-534.47976582,0.00019178,2]
[348167322,1736362240389,-500.0,0.00019178,2]
[348167324,1736362240399,-500.0,0.00019178,2]
[348167326,1736362240409,-500.0,0.00019178,2]
[348167328,1736362240419,-501.75189881,0.00019178,2]
[348167330,1736362240429,-500.0,0.00019178,2]
[348167332,1736362240438,-638.64402723,0.00019178,2]
[348167334,1736362240447,-500.0,0.00019178,2]
[348167336,1736362240457,-528.83,0.00019178,2]
[348167338,1736362240466,-500.0,0.00019178,2]
[348167339,1736362240476,-500.0,0.00019178,2]
[348167340,1736362240485,-500.0,0.00019178,2]
[348167341,1736362240496,-500.0,0.00019178,2]
[348167342,1736362240506,-500.0,0.00019178,2]
[348167343,1736362240515,-500.0,0.00019178,2]
[348167344,1736362240526,-500.0,0.00019178,2]
[348167345,1736362240536,-500.0,0.00019178,2]
[348167346,1736362240545,-500.0,0.00019178,2]
[348167347,1736362240555,-500.0,0.00019178,2]
[348167348,1736362240564,-500.0,0.00019178,2]
[348167349,1736362240574,-500.0,0.00019178,2]
[348167350,1736362240583,-500.0,0.00019178,2]
[348167351,1736362240592,-500.0,0.00019178,2]
[348167352,1736362240602,-500.0,0.00019178,2]
[348167353,1736362240611,-500.0,0.00019178,2]
[348167354,1736362240620,-500.0,0.00019178,2]
[348167355,1736362240630,-500.0,0.00019178,2]
[348167356,1736362240640,-500.0,0.00019178,2]
[348167358,1736362240650,-200.0,0.00019178,2]
[348167360,1736362240660,-500.0,0.00019178,2]
[348167362,1736362240669,-500.0,0.00019178,2]
[348167364,1736362240678,-500.0,0.00019178,2]
[348167366,1736362240687,-500.0,0.00019178,2]
[348167368,1736362240697,-499.53254753,0.00019178,2]
[348167370,1736362240707,-183.3274496,0.00019178,2]
[348167372,1736362240716,-500.0,0.00019178,2]
[348167374,1736362240727,-500.0,0.00019178,2]
[348167376,1736362240737,-353.81307459,0.00019178,2]
[348167378,1736362240746,-500.0,0.00019178,2]
[348167380,1736362240756,-500.0,0.00019178,2]
[348167382,1736362240765,-591.4,0.00019178,2]
[348167384,1736362240778,-500.0,0.00019178,2]
[348167386,1736362240787,-500.0,0.00019178,2]
[348167388,1736362240797,-500.0,0.00019178,2]
[348167390,1736362240807,-502.62727664,0.00019178,2]
[348167392,1736362240816,-478.2,0.00019178,2]
[348167394,1736362240825,-500.0,0.00019178,2]
[348167396,1736362240835,-155.89,0.00019178,2]
[348167398,1736362240845,-500.0,0.00019178,2]
[348167400,1736362240854,-500.0,0.00019178,2]
[348167402,1736362240863,-500.0,0.00019178,2]
[348167404,1736362240872,-500.0,0.00019178,2]
[348167406,1736362240882,-500.0,0.00019178,2]
[348167408,1736362240891,-500.0,0.00019178,2]
[348167410,1736362240901,-500.0,0.00019178,2]
[348167412,1736362240911,-500.0,0.00019178,2]
[348167414,1736362240924,-500.0,0.00019178,2]
[348167416,1736362240934,-500.0,0.00019178,2]
[348167418,1736362240944,-500.0,0.00019178,2]
[348167420,1736362240953,-500.0,0.00019178,2]
[348167422,1736362240964,-615.09183309,0.00019178,2]
[348167424,1736362240973,-500.0,0.00019178,2]
[348167426,1736362240983,-500.0,0.00019178,2]
[348167428,1736362240993,-604.79682391,0.00019178,2]
[348167430,1736362241003,-500.0,0.00019178,2]
[348167432,1736362241015,-500.0,0.00019178,2]
[348167435,1736362241028,-683.42,0.00019178,2]
[348167437,1736362241037,-500.0,0.00019178,2]
[348167439,1736362241046,-500.0,0.00019178,2]
[348167441,1736362241056,-501.6039421,0.00019178,2]
[348167443,1736362241065,-599.77455922,0.00019178,2]
[348167445,1736362241075,-500.0,0.00019178,2]
[348167447,1736362241084,-500.0,0.00019178,2]
[348167449,1736362241094,-500.0,0.00019178,2]
[348167451,1736362241103,-500.0,0.00019178,2]
[348167453,1736362241112,-500.0,0.00019178,2]
[348167455,1736362241122,-500.0,0.00019178,2]
[348167457,1736362241132,-500.0,0.00019178,2]
[348167459,1736362241142,-500.0,0.00019178,2]
[348167461,1736362241151,-151.97,0.00019178,2]
[348167463,1736362241162,-500.0,0.00019178,2]
[348167465,1736362241171,-500.0,0.00019178,2]
[348167467,1736362241181,-500.0,0.00019178,2]
[348167469,1736362241190,-500.0,0.00019178,2]
[348167471,1736362241200,-500.0,0.00019178,2]
[348167473,1736362241210,-500.0,0.00019178,2]
[348167475,1736362241219,-500.0,0.00019178,2]
[348167477,1736362241228,-3685.03,0.00019178,2]
[348167479,1736362241238,-500.0,0.00019178,2]
[348167481,1736362241247,-500.0,0.00019178,2]
[348167483,1736362241256,-500.0,0.00019178,2]
[348167485,1736362241265,-500.0,0.00019178,2]
[348167487,1736362241275,-500.0,0.00019178,2]
[348167489,1736362241285,-500.0,0.00019178,2]
[348167491,1736362241295,-500.0,0.00019178,2]
[348167493,1736362241304,-500.0,0.00019178,2]
[348167495,1736362241313,-500.0,0.00019178,2]
[348167497,1736362241323,-166.67373054,0.00019178,2]
[348167499,1736362241333,-500.0,0.00019178,2]
[348167501,1736362241342,-500.0,0.00019178,2]
[348167503,1736362241352,-500.0,0.00019178,2]